fUSD/lending_fUSD_20250630
["ID","MTS","AMOUNT","RATE_DAILY","PERIOD"]
[368688450,1751298636880,-490.0,0.00013971,2]
[368688451,1751298636892,-490.0,0.00013971,2]
[368688452,1751298636902,-790.51,0.00013971,2]
[368688453,1751298636911,-4454.12,0.00013971,2]
[368688454,1751298636921,-651.79,0.00013971,2]
[368688455,1751298636931,-539.85,0.00013971,2]
[368688456,1751298636940,-1117.58,0.00013971,2]
[368688457,1751298636950,-617.92,0.00013971,2]
[368688458,1751298636960,-3129.64,0.00013971,2]
[368688459,1751298636970,-318.51543686,0.00013972,2]
[368688460,1751298636979,-490.0,0.00013972,2]
[368688461,1751298636989,-490.0,0.00013972,2]
[368688462,1751298637000,-490.0,0.00013972,2]
[368688463,1751298637010,-490.0,0.00013972,2]
[368688464,1751298637020,-1341.83,0.00013972,2]
[368688465,1751298637030,-807.46,0.00013972,2]
[368688466,1751298637039,-377.86633215,0.00013972,2]
[368688467,1751298637049,-490.0,0.00013972,2]
[368688468,1751298637059,-490.0,0.00013972,2]
[368688469,1751298637068,-490.0,0.00013972,2]
[368688470,1751298637078,-507.24,0.00013972,2]
[368688471,1751298637088,-490.0,0.00013972,2]
[368688472,1751298637098,-490.0,0.00013972,2]
[368688473,1751298637107,-491.29507125,0.00013972,2]
[368688474,1751298637117,-490.0,0.00013972,2]
[368688475,1751298637127,-1000.0,0.00013972,2]
[368688476,1751298637136,-500.0,0.00013972,2]
[368688477,1751298637146,-917.32,0.00013972,2]
[368688478,1751298637156,-490.0,0.00013972,2]
[368688479,1751298637168,-490.0,0.00013972,2]
[368688480,1751298637178,-490.0,0.00013972,2]
[368688481,1751298637188,-490.0,0.00013972,2]
[368688482,1751298637198,-490.0,0.00013972,2]
[368688483,1751298637208,-490.0,0.00013972,2]
[368688484,1751298637218,-490.0,0.00013972,2]
[368688486,1751298637228,-1240.8,0.00013972,2]
[368688487,1751298637238,-1673.51,0.00013972,2]
[368688488,1751298637248,-708.22,0.00013972,2]
[368688489,1751298637258,-791.91,0.00013972,2]
[368688490,1751298637269,-1223.63,0.00013972,2]
[368688491,1751298637279,-1147.54,0.00013972,2]
[368688492,1751298637288,-490.0,0.00013972,2]
[368688493,1751298637298,-1591.61,0.00013972,2]
[368688494,1751298637308,-743.88,0.00013972,2]
[368688495,1751298637318,-1517.86,0.00013972,2]
[368688496,1751298637327,-490.0,0.00013972,2]
[368688497,1751298637337,-545.35,0.00013972,2]
[368688499,1751298637347,-853.95,0.00013972,2]
[368688500,1751298637358,-492.89444601,0.00013972,2]
[368688501,1751298637369,-797.7,0.00013972,2]
[368688503,1751298637379,-490.0,0.00013972,2]
[368688504,1751298637389,-490.0,0.00013972,2]
[368688506,1751298637400,-598.68,0.00013972,2]
[368688507,1751298637409,-497.93,0.00013972,2]
[368688508,1751298637419,-321.13623252,0.00013972,2]
[368688509,1751298637428,-490.0,0.00013972,2]
[368688510,1751298637438,-490.0,0.00013972,2]
[368688511,1751298637448,-490.0,0.00013972,2]
[368688512,1751298637458,-490.0,0.00013972,2]
[368688513,1751298637468,-588.47,0.00013972,2]
[368688514,1751298637478,-490.0,0.00013972,2]
[368688515,1751298637487,-555.41267922,0.00013972,2]
[368688517,1751298637497,-490.0,0.00013972,2]
[368688518,1751298637507,-490.0,0.00013972,2]
[368688519,1751298637517,-490.0,0.00013972,2]
[368688520,1751298637526,-384.77714258,0.00013972,2]
[368688521,1751298637536,-490.0,0.00013972,2]
[368688522,1751298637545,-490.0,0.00013972,2]
[368688523,1751298637555,-727.82,0.00013972,2]
[368688524,1751298637564,-490.0,0.00013972,2]
[368688525,1751298637576,-490.0,0.00013972,2]
[368688526,1751298637586,-490.0,0.00013972,2]
[368688527,1751298637596,-2984.85,0.00013972,2]
[368688528,1751298637606,-490.0,0.00013972,2]
[368688529,1751298637617,-490.0,0.00013972,2]
[368688530,1751298637627,-1199.98,0.00013972,2]
[368688531,1751298637638,-490.0,0.00013972,2]
[368688532,1751298637648,-2177.77,0.00013972,2]
[368688533,1751298637658,-490.0,0.00013972,2]
[368688534,1751298637670,-490.0,0.00013972,2]
[368688535,1751298637680,-490.0,0.00013972,2]
[368688536,1751298637691,-1388.99,0.00013972,2]
[368688537,1751298637701,-490.0,0.00013972,2]
[368688538,1751298637711,-490.0,0.00013972,2]
[368688539,1751298637721,-490.0,0.00013972,2]
[368688540,1751298637730,-490.0,0.00013972,2]
[368688541,1751298637742,-992.09,0.00013972,2]
[368688542,1751298637752,-490.0,0.00013972,2]
[368688543,1751298637762,-490.0,0.00013972,2]
[368688544,1751298637772,-490.0,0.00013972,2]
[368688545,1751298637782,-2574.39,0.00013972,2]
[368688546,1751298637792,-965.51,0.00013972,2]
[368688547,1751298637802,-2913.7,0.00013972,2]
[368688548,1751298637811,-1572.31,0.00013972,2]
[368688549,1751298637822,-1314.98,0.00013972,2]
[368688550,1751298637832,-2143.17,0.00013972,2]
[368688551,1751298637842,-1342.22,0.00013972,2]
[368688552,1751298637851,-3200.5,0.00013972,2]
[368688553,1751298637861,-490.0,0.00013972,2]
[368688554,1751298637871,-583.46,0.00013972,2]
[368688555,1751298637881,-1384.95,0.00013972,2]
[368688556,1751298637891,-2872.02,0.00013972,2]
[368688557,1751298637901,-1176.48,0.00013972,2]
[368688558,1751298637912,-500.0,0.00013972,2]
[368688559,1751298637922,-1134.84,0.00013972,2]
[368688560,1751298637932,-3662.83,0.00013972,2]
[368688561,1751298637943,-490.0,0.00013972,2]
[368688562,1751298637953,-1252.06,0.00013972,2]
[368688563,1751298637964,-1496.41,0.00013972,2]
[368688564,1751298637974,-3583.09,0.00013972,2]
[368688565,1751298637984,-865.28,0.00013972,2]
[368688566,1751298637994,-490.0,0.00013972,2]
[368688567,1751298638003,-1317.44,0.00013972,2]
[368688568,1751298638016,-1875.67,0.00013972,2]
[368688569,1751298638026,-655.74,0.00013972,2]
[368688570,1751298638036,-1677.61,0.00013972,2]
[368688571,1751298638046,-1370.56,0.00013972,2]
[368688572,1751298638056,-874.09,0.00013972,2]
[368688573,1751298638066,-2127.53,0.00013972,2]
[368688574,1751298638076,-490.0,0.00013972,2]
[368688575,1751298638086,-1431.82,0.00013972,2]
[368688576,1751298638096,-490.0,0.00013972,2]
[368688577,1751298638106,-490.0,0.00013972,2]
[368688578,1751298638115,-209.92035172,0.00013972,2]
[368688579,1751298638125,-881.85,0.00013972,2]
[368688580,1751298638135,-3736.3,0.00013972,2]
[368688581,1751298638145,-491.32499834,0.00013972,2]
[368688582,1751298638156,-1098.73,0.00013972,2]
[368688583,1751298638168,-901.98,0.00013972,2]
[368688584,1751298638180,-167.73721095,0.00013973,2]
[368688585,1751298638191,-381.74382364,0.00013973,2]
[368688586,1751298638203,-500.0,0.00013973,2]
[368688587,1751298638213,-174.40118341,0.00013973,2]
[368688588,1751298638223,-1424.552,0.00013973,2]
[368688589,1751298638233,-500.0,0.00013976,2]
[368688590,1751298638243,-416.63879991,0.00013976,2]
[368688591,1751298638253,-500.0,0.00013976,2]
[368688592,1751298638262,-554.24,0.00013976,2]
[368688593,1751298638272,-490.0,0.00013977,2]
[368688594,1751298638282,-490.0,0.00013977,2]
[368688595,1751298638292,-490.0,0.00013977,2]
[368688596,1751298638302,-490.0,0.00013977,2]
[368688597,1751298638311,-490.0,0.00013977,2]
[368688598,1751298638321,-490.0,0.00013977,2]
[368688599,1751298638330,-490.0,0.00013977,2]
[368688600,1751298638339,-490.0,0.00013977,2]
[368688601,1751298638349,-490.0,0.00013977,2]
[368688602,1751298638359,-490.0,0.00013977,2]
[368688603,1751298638370,-490.0,0.00013977,2]
[368688604,1751298638380,-490.0,0.00013977,2]
[368688605,1751298638390,-846.7,0.00013977,2]
[368688606,1751298638400,-490.0,0.00013977,2]
[368688607,1751298638412,-490.0,0.00013977,2]
[368688608,1751298638421,-490.0,0.00013977,2]
[368688609,1751298638431,-490.0,0.00013977,2]
[368688610,1751298638441,-490.0,0.00013977,2]
[368688611,1751298638451,-490.0,0.00013977,2]
[368688612,1751298638460,-490.0,0.00013977,2]
[368688613,1751298638470,-490.0,0.00013977,2]
[368688614,1751298638480,-530.98,0.00013977,2]
[368688615,1751298638489,-490.0,0.00013977,2]
[368688616,1751298638500,-1092.4,0.00013977,2]
[368688617,1751298638510,-490.0,0.00013977,2]
[368688618,1751298638520,-638.58,0.00013977,2]
[368688619,1751298638530,-490.0,0.00013977,2]
[368688620,1751298638540,-909.64,0.00013977,2]
[368688621,1751298638551,-490.0,0.00013977,2]
[368688622,1751298638560,-700.12,0.00013977,2]
[368688623,1751298638571,-4275.36,0.00013977,2]
[368688624,1751298638585,-1270.27,0.00013977,2]
[368688625,1751298638595,-3225.95,0.00013977,2]
[368688626,1751298638604,-1025.24,0.00013977,2]
[368688627,1751298638614,-5067.58,0.00013977,2]
[368688628,1751298638625,-2870.97,0.00013977,2]
[368688629,1751298638635,-490.0,0.00013977,2]
[368688630,1751298638645,-5274.63,0.00013977,2]
[368688631,1751298638663,-1336.64,0.00013977,2]
[368688632,1751298638675,-1782.86,0.00013977,2]
[368688633,1751298638685,-3668.08,0.00013977,2]
[368688634,1751298638695,-715.79,0.00013977,2]
[368688635,1751298638704,-3347.53,0.00013977,2]
[368688637,1751298638715,-490.0,0.00013977,2]
[368688639,1751298638725,-2215.63,0.00013977,2]
[368688641,1751298638735,-3099.23,0.00013977,2]
[368688642,1751298638745,-1664.87,0.00013977,2]
[368688643,1751298638755,-1673.76,0.00013977,2]
[368688644,1751298638765,-1965.39,0.00013977,2]
[368688645,1751298638776,-2183.8,0.00013977,2]
[368688646,1751298638786,-1070.82,0.00013977,2]
[368688647,1751298638795,-2536.51,0.00013977,2]
[368688649,1751298638806,-1193.58,0.00013977,2]
[368688652,1751298638815,-353.18934778,0.00013977,2]
[368688655,1751298638825,-1912.76,0.00013977,2]
[368688658,1751298638834,-500.0,0.00013977,2]
[368688660,1751298638844,-1558.58,0.00013977,2]
[368688662,1751298638853,-881.21,0.00013977,2]
[368688664,1751298638864,-490.0,0.00013977,2]
[368688666,1751298638874,-3074.29,0.00013977,2]
[368688668,1751298638883,-7785.92,0.00013977,2]
[368688670,1751298638893,-1243.52,0.00013977,2]
[368688672,1751298638904,-598.53,0.00013977,2]
[368688673,1751298638915,-4027.1,0.00013977,2]
[368688674,1751298638924,-2033.31,0.00013977,2]
[368688675,1751298638934,-2122.44,0.00013977,2]
[368688676,1751298638944,-2133.91,0.00013977,2]
[368688677,1751298638954,-2180.36,0.00013977,2]
[368688678,1751298638964,-2558.58,0.00013977,2]
[368688679,1751298638973,-1874.7,0.00013977,2]
[368688680,1751298638983,-1100.23,0.00013977,2]
[368688681,1751298638993,-29983.6,0.00013977,2]
[368688682,1751298639004,-2873.86,0.00013977,2]
[368688683,1751298639014,-1244.35,0.00013978,2]
[368688684,1751298639023,-1215.37,0.00013978,2]
[368688685,1751298639033,-490.0,0.00013978,2]
[368688686,1751298639043,-1580.4,0.00013978,2]
[368688687,1751298639053,-1267.05,0.00013978,2]
[368688688,1751298639063,-1034.61,0.00013978,2]
[368688690,1751298639073,-1994.6,0.00013978,2]
[368688692,1751298639082,-719.68,0.00013978,2]
[368688694,1751298639092,-1486.63,0.00013978,2]
[368688696,1751298639102,-1417.0,0.00013978,2]
[368688698,1751298639111,-2053.57,0.00013978,2]
[368688700,1751298639121,-723.36,0.00013978,2]
[368688702,1751298639131,-1918.16,0.00013978,2]
[368688704,1751298639141,-490.0,0.00013978,2]
[368688707,1751298639162,-1682.56,0.00013978,2]
[368688709,1751298639178,-2147.73,0.00013978,2]
[368688711,1751298639189,-490.0,0.00013978,2]
[368688713,1751298639200,-3120.19,0.00013978,2]
[368688715,1751298639211,-993.12,0.00013978,2]
[368688717,1751298639222,-2256.44,0.00013978,2]
[368688720,1751298639233,-490.0,0.00013978,2]
[368688722,1751298639243,-7862.8202598,0.00013978,2]
[368688724,1751298639254,-490.0,0.00013978,2]
[368688726,1751298639265,-755.47,0.00013978,2]
[368688729,1751298639275,-2443.78,0.00013978,2]
[368688731,1751298639286,-2069.79,0.00013978,2]
[368688748,1751298639452,-490.0,0.00013978,2]
[368688750,1751298639464,-749.9,0.00013978,2]
[368688752,1751298639474,-1789.57,0.00013978,2]
[368688754,1751298639484,-2620.57,0.00013978,2]
[368688756,1751298639495,-4520.5269123,0.00013978,2]
[368688758,1751298639505,-2393.44,0.00013978,2]
[368688760,1751298639516,-1008.04,0.00013978,2]
[368688762,1751298639527,-1497.03,0.00013978,2]
[368688765,1751298639537,-2576.34,0.00013978,2]
[368688767,1751298639555,-490.0,0.00013978,2]
[368688769,1751298639566,-1903.2,0.00013978,2]
[368688771,1751298639580,-490.0,0.00013978,2]
[368688773,1751298639591,-2364.36,0.00013978,2]
[368688775,1751298639601,-1436.0,0.00013978,2]
[368688777,1751298639611,-1025.24,0.00013978,2]
[368688779,1751298639622,-1690.56,0.00013978,2]
[368688781,1751298639632,-490.0,0.00013978,2]
[368688783,1751298639642,-1324.4,0.00013978,2]
[368688785,1751298639654,-1609.94,0.00013978,2]
[368688787,1751298639667,-985.2,0.00013978,2]
[368688789,1751298639677,-490.0,0.00013978,2]
[368688792,1751298639687,-705.86,0.00013978,2]
[368688794,1751298639699,-524.57,0.00013978,2]
[368688796,1751298639708,-858.59,0.00013978,2]
[368688798,1751298639720,-490.0,0.00013978,2]
[368688800,1751298639730,-490.0,0.00013978,2]
[368688801,1751298639740,-490.0,0.00013978,2]
[368688804,1751298639751,-490.0,0.00013978,2]
[368688805,1751298639761,-1664.47,0.00013978,2]
[368688808,1751298639771,-596.81,0.00013978,2]
[368688810,1751298639781,-1419.91,0.00013978,2]
[368688811,1751298639791,-1400.32,0.00013978,2]
[368688813,1751298639801,-1520.32,0.00013978,2]
[368688816,1751298639811,-490.0,0.00013978,2]
[368688818,1751298639822,-1105.24,0.00013978,2]
[368688820,1751298639832,-2787.27,0.00013978,2]
[368688822,1751298639841,-2712.78,0.00013978,2]
[368688824,1751298639851,-490.0,0.00013978,2]
[368688826,1751298639861,-2424.2,0.00013978,2]
[368688828,1751298639870,-958.66,0.00013978,2]
[368688830,1751298639879,-1962.91,0.00013978,2]
[368688832,1751298639889,-3189.2,0.00013978,2]
[368688834,1751298639900,-1280.84,0.00013978,2]
[368688836,1751298639911,-645.01,0.00013978,2]
[368688838,1751298639921,-1390.26,0.00013978,2]
[368688840,1751298639931,-490.0,0.00013978,2]
[368688842,1751298639941,-3108.24,0.00013978,2]
[368688844,1751298639951,-567890.83214487,0.00013978,2]
[368688979,1751298644136,-649.49870663,0.00013808,2]
[368688983,1751298644163,-561.73,0.00013808,2]
[368688985,1751298644177,-7.85234407,0.00013808,2]
[368688987,1751298644187,-703.58890993,0.0001382,2]
[368688989,1751298644199,-515.49214077,0.0001382,2]
[368688991,1751298644210,-732.6,0.00013897,2]
[368688993,1751298644219,-480.55785923,0.00013977,2]
[368688997,1751298644244,-613.04189914,0.00013977,2]
[368688999,1751298644256,-715.89999,0.00013977,2]
[368689001,1751298644267,-567.64588713,0.00013977,2]
[368689003,1751298644278,-500.0,0.00013977,2]
[368689010,1751298644329,-14005.1643645,0.00013977,2]
[368689012,1751298644339,-4389.81,0.00013977,2]
[368689014,1751298644349,-132862.0274775,0.00013978,2]
[368689016,1751298644590,-4393.51222,0.00013978,2]
[368689017,1751298644622,-1615.75,0.00013978,2]
[368689018,1751298644634,-277.36164615,0.00013978,2]
[368689019,1751298644646,-6546.07347918,0.00013978,2]
[368689020,1751298644688,-500.0,0.00013899,2]
[368689021,1751298644698,-4845.50499327,0.00013978,2]
[368689022,1751298644712,-986.92601314,0.00013978,2]
[368689023,1751298644724,-797.6706598,0.00013978,2]
[368689024,1751298644776,-445.76967205,0.00013899,2]
[368689025,1751298644786,-1703.23032795,0.00013978,2]
[368689028,1751298645805,-500.0,0.00013899,2]
[368689029,1751298645815,-305.39408362,0.00013899,2]
[368689030,1751298645825,-881.56414715,0.00013971,2]
[368689034,1751298646382,-1219.0810507,0.00013831,2]
[368689035,1751298646392,-751.14585285,0.00013971,2]
[368689036,1751298646402,-7456.73709645,0.00013978,2]
[368689037,1751298647383,-460.98,0.0001389,2]
[368689038,1751298647394,-172.23949915,0.00013896,2]
[368689039,1751298647405,-234.95925031,0.00013896,2]
[368689040,1751298647415,-490.0,0.00013897,2]
[368689041,1751298647426,-460.98,0.00013962,2]
[368689042,1751298647436,-21099.62342721,0.00013978,2]
[368689043,1751298647667,-832.95,0.00013978,2]
[368689044,1751298658929,408.00003,0.00012508,2]
[368689045,1751298660751,1710.35157099,0.00027379,120]
[368689048,1751298694492,1000.0,0.00012983,2]
[368689050,1751298818324,310.82,0.00012917,2]
[368689052,1751298842458,978.18,0.00012917,2]
[368689053,1751298873436,224.62,0.00012917,2]
[368689054,1751298875139,313.61,0.00012917,2]
[368689055,1751298942813,2751.0,0.0001291,2]
[368689056,1751298965358,150.0,0.00012899,2]
[368689057,1751299002146,23900.0,0.00012917,2]
[368689058,1751299026947,170.55,0.00012908,2]
[368689059,1751299056971,21120.38,0.00012927,2]
[368689060,1751299059085,1308.01,0.00012931,2]
[368689061,1751299113967,7366.66,0.00012946,2]
[368689063,1751299134469,7051.89,0.00012929,2]
[368689064,1751299178790,508.29889043,0.0002739,120]
[368689065,1751299221619,3586.7,0.00012878,2]
[368689066,1751299290967,250.0,0.00012877,2]
[368689067,1751299300579,150.0,0.0001264,2]
[368689068,1751299300818,150.0,0.00012864,2]
[368689070,1751299359731,150.0,0.00012733,2]
[368689071,1751299410677,150.0,0.00021944,120]
[368689072,1751299417183,4849.91,0.00012872,2]
[368689073,1751299438958,505.0,0.00012302,2]
[368689074,1751299470555,150.0,0.00024669,120]
[368689075,1751299477955,1696668.67149163,0.0001288,2]
[368689076,1751299477981,351153.86882917,0.0001288,2]
[368689077,1751299479692,200.0,0.00012946,2]
[368689078,1751299565873,200.0,0.00012861,7]
[368689079,1751299589056,-150.0,0.00013156,2]
[368689080,1751299589079,-166.88,0.00013305,2]
[368689081,1751299589101,-600.0,0.00013628,2]
[368689082,1751299589124,-300.0,0.00013628,2]
[368689083,1751299589145,-150.0,0.00013628,2]
[368689084,1751299589167,-1202.0,0.00013629,2]
[368689085,1751299589189,-1202.0,0.00013629,2]
[368689086,1751299589210,-1202.0,0.00013629,2]
[368689087,1751299589232,-1202.0,0.00013629,2]
[368689088,1751299589254,-1202.0,0.00013629,2]
[368689089,1751299589276,-1202.0,0.00013629,2]
[368689090,1751299589298,-1202.0,0.00013629,2]
[368689091,1751299589319,-480.07699061,0.00013629,2]
[368689092,1751299589342,-527.71,0.00013699,2]
[368689093,1751299589364,-250.0,0.00013793,2]
[368689094,1751299589384,-597.97219403,0.00013797,2]
[368689095,1751299589405,-1000.0,0.000138,2]
[368689096,1751299589428,-158.90219,0.000138,2]
[368689097,1751299589450,-1200.0,0.00013807,2]
[368689098,1751299589473,-9673.95662264,0.00013818,2]
[368689099,1751299589498,-150.0,0.00013825,2]
[368689100,1751299589522,-9673.9566226,0.00013827,2]
[368689101,1751299589547,-227.86,0.0001383,2]
[368689102,1751299589571,-9673.9566226,0.00013836,2]
[368689103,1751299589594,-9673.9566226,0.00013845,2]
[368689104,1751299589617,-1202.0,0.00013849,2]
[368689105,1751299589640,-1202.0,0.00013849,2]
[368689106,1751299589662,-1202.0,0.00013849,2]
[368689107,1751299589683,-153.0,0.00013849,2]
[368689108,1751299589704,-153.0,0.00013849,2]
[368689109,1751299589726,-153.0,0.00013849,2]
[368689110,1751299589749,-153.0,0.00013849,2]
[368689111,1751299589772,-153.0,0.00013849,2]
[368689112,1751299589794,-153.0,0.00013849,2]
[368689113,1751299589817,-153.0,0.00013849,2]
[368689114,1751299589839,-153.0,0.00013849,2]
[368689115,1751299589863,-284.3793127,0.00013849,2]
[368689116,1751299589887,-9673.9566226,0.00013854,2]
[368689117,1751299589911,-9673.9566226,0.00013864,2]
[368689118,1751299589937,-6912.642,0.00013869,2]
[368689119,1751299589961,-207.4,0.00013869,2]
[368689120,1751299589984,-5000.0,0.0001387,2]
[368689121,1751299590008,-433.69803164,0.00013872,2]
[368689122,1751299590263,-2914.73954538,0.00013873,2]
[368689123,1751299591613,150.0,0.00022087,120]
[368689124,1751299619249,522.0,0.00012302,2]
[368689125,1751299697565,-158.902191,0.00013707,2]
[368689126,1751299697588,-250.0,0.00013752,2]
[368689127,1751299697613,-300.0,0.00013752,2]
[368689128,1751299697636,-300.0,0.00013794,2]
[368689129,1751299697661,-768.96173903,0.00013796,2]
[368689130,1751299697684,-2611.47932,0.00013796,2]
[368689131,1751299697707,-270.04865098,0.00013797,2]
[368689132,1751299697730,-768.96173899,0.00013808,2]
[368689133,1751299697752,-300.0,0.00013809,2]
[368689134,1751299697776,-207.4,0.0001381,2]
[368689135,1751299697800,-6912.642,0.0001381,2]
[368689136,1751299697824,-160.52605489,0.00013818,2]
[368689137,1751299697849,-5000.0,0.00013818,2]
[368689138,1751299697874,-768.96173899,0.00013819,2]
[368689139,1751299697897,-879.24248,0.0001384,2]
[368689140,1751299697920,-2974.67846697,0.00013865,2]
[368689141,1751299697943,-300.0,0.00013866,2]
[368689142,1751299697965,-160.0,0.00013866,2]
[368689143,1751299697989,-500.0,0.00013866,2]
[368689144,1751299698012,-500.0,0.00013866,2]
[368689145,1751299698036,-500.0,0.00013866,2]
[368689146,1751299698059,-500.0,0.00013866,2]
[368689147,1751299698085,-500.0,0.00013866,2]
[368689148,1751299698111,-500.0,0.00013866,2]
[368689149,1751299698135,-500.0,0.00013866,2]
[368689150,1751299698159,-500.0,0.00013866,2]
[368689151,1751299698182,-151.0,0.00013866,2]
[368689152,1751299698206,-500.0,0.00013866,2]
[368689153,1751299698232,-500.0,0.00013866,2]
[368689154,1751299698256,-500.0,0.00013866,2]
[368689155,1751299698279,-500.0,0.00013866,2]
[368689156,1751299698303,-439.86815715,0.00013866,2]
[368689157,1751299698325,-151.0,0.00013866,2]
[368689158,1751299698348,-180.0,0.00013866,2]
[368689159,1751299698372,-174.72087728,0.00013872,2]
[368689160,1751299698395,-6759.21707722,0.00013873,2]
[368689161,1751299698418,-9673.9566226,0.00013882,2]
[368689162,1751299698440,-156.70473818,0.00013885,2]
[368689163,1751299698463,-270.04865097,0.00013886,2]
[368689164,1751299698486,-9673.9566226,0.00013891,2]
[368689165,1751299698509,-490.0,0.00013895,2]
[368689166,1751299698530,-490.0,0.00013895,2]
[368689167,1751299698556,-251.05753186,0.00013896,2]
[368689168,1751299698579,-624.04,0.00013896,2]
[368689169,1751299698602,-490.0,0.00013896,2]
[368689170,1751299698626,-491.24593624,0.00013896,2]
[368689171,1751299698648,-490.0,0.00013896,2]
[368689172,1751299698670,-490.42,0.00013896,2]
[368689173,1751299698691,-544.97,0.00013896,2]
[368689174,1751299698713,-490.0,0.00013896,2]
[368689175,1751299698735,-640.27,0.00013896,2]
[368689176,1751299698757,-494.11733257,0.00013896,2]
[368689177,1751299698778,-490.0,0.00013896,2]
[368689178,1751299698800,-490.0,0.00013896,2]
[368689179,1751299698822,-617.88,0.00013896,2]
[368689180,1751299698843,-556.96,0.00013896,2]
[368689181,1751299698866,-490.0,0.00013896,2]
[368689182,1751299698893,-533.4,0.00013896,2]
[368689183,1751299698916,-490.0,0.00013896,2]
[368689184,1751299698937,-490.0,0.00013896,2]
[368689185,1751299698962,-490.0,0.00013896,2]
[368689186,1751299698984,-490.0,0.00013896,2]
[368689187,1751299699005,-490.0,0.00013896,2]
[368689188,1751299699027,-490.0,0.00013896,2]
[368689189,1751299699049,-490.0,0.00013896,2]
[368689190,1751299699072,-490.0,0.00013896,2]
[368689191,1751299699093,-490.0,0.00013896,2]
[368689192,1751299699114,-490.0,0.00013896,2]
[368689193,1751299699135,-490.0,0.00013896,2]
[368689194,1751299699156,-822.74,0.00013896,2]
[368689195,1751299699177,-490.0,0.00013896,2]
[368689196,1751299699198,-560.72465045,0.00013896,2]
[368689197,1751299699219,-490.0,0.00013896,2]
[368689198,1751299699242,-504.23,0.00013896,2]
[368689199,1751299699264,-706.62,0.00013896,2]
[368689200,1751299699285,-490.0,0.00013896,2]
[368689201,1751299699307,-709.01,0.00013896,2]
[368689202,1751299699328,-490.0,0.00013896,2]
[368689203,1751299699350,-490.0,0.00013896,2]
[368689204,1751299699372,-490.0,0.00013896,2]
[368689205,1751299699394,-490.0,0.00013896,2]
[368689206,1751299699416,-490.0,0.00013896,2]
[368689207,1751299699439,-490.0,0.00013896,2]
[368689208,1751299699461,-490.0,0.00013896,2]
[368689209,1751299699483,-490.0,0.00013896,2]
[368689210,1751299699504,-490.0,0.00013896,2]
[368689211,1751299699526,-490.0,0.00013896,2]
[368689212,1751299699551,-490.0,0.00013896,2]
[368689213,1751299699575,-531.22,0.00013896,2]
[368689214,1751299699599,-490.0,0.00013896,2]
[368689215,1751299699621,-490.0,0.00013896,2]
[368689216,1751299699644,-1254.3,0.00013896,2]
[368689217,1751299699667,-490.0,0.00013896,2]
[368689218,1751299699690,-1118.39,0.00013896,2]
[368689219,1751299699711,-490.0,0.00013896,2]
[368689220,1751299699930,-1488.46,0.00013896,2]
[368689221,1751299699959,-1106.07,0.00013896,2]
[368689222,1751299699982,-1468.2,0.00013896,2]
[368689223,1751299700005,-490.0,0.00013896,2]
[368689224,1751299700027,-837.73,0.00013896,2]
[368689225,1751299700048,-490.0,0.00013896,2]
[368689226,1751299700071,-490.0,0.00013896,2]
[368689227,1751299700092,-490.0,0.00013896,2]